bitfinex-derivatives/quotes_BNBF0:USTF0_20250810
["timestamp","ask_amount","ask_price","bid_price","bid_amount"]
[1754811914476,0.21733768,802.58,801.01,1.0875424]
[1754811914674,0.21733768,802.58,801.02,0.69569281]
[1754811914877,0.21733768,802.58,800.96,1.0875424]
[1754811915077,0.21733768,802.58,800.87,1.0875424]
[1754811915276,0.21733768,802.58,800.89,1.0875424]
[1754811915577,0.21733768,802.58,801.09,1.0875424]
[1754811915780,0.21733768,802.58,801.1,1.78333396]
[1754811915980,0.21733768,802.58,801.09,1.0875424]
[1754811916181,0.21733768,802.58,801.07,1.0875424]
[1754811916782,0.21733768,802.58,801.02,1.0875424]
[1754811916982,0.21733768,802.58,800.98,1.0875424]
[1754811917178,0.21733768,802.58,800.99,0.69587625]
[1754811917383,0.21733768,802.58,800.98,1.0875424]
[1754811917585,0.21733768,802.58,800.99,0.69609506]
[1754811917879,0.21733768,802.58,801.13,1.0875424]
[1754811918186,0.21733768,802.58,801.17,1.0875424]
[1754811918380,0.21733768,802.58,801.18,0.6959486]
[1754811918583,0.21733768,802.58,801.19,0.6959486]
[1754811918880,0.21733768,802.58,801.2,0.6959486]
[1754811919080,0.21733768,802.58,801.14,1.0875424]
[1754811919282,0.21733768,802.58,801.15,0.69615773]
[1754811919483,0.21733768,802.58,801.09,1.0875424]
[1754811919683,0.21733768,802.58,800.96,1.0875424]
[1754811919881,0.21733768,802.58,800.97,0.6964001]
[1754811920084,0.21733768,802.58,800.98,0.6964001]
[1754811920380,0.21733768,802.58,800.99,0.6964001]
[1754811920686,0.21733768,802.58,801.0,0.6964001]
[1754811920984,0.21733768,802.58,801.01,0.6964001]
[1754811921185,0.21733768,802.58,801.04,1.0875424]
[1754811921480,0.21733768,802.58,801.02,0.6964001]
[1754811921481,0.21733768,802.58,801.21,1.0875424]
[1754811922084,0.21733768,802.58,801.11,1.0875424]
[1754811922285,0.21733768,802.58,801.12,0.69633331]
[1754811922486,0.21733768,802.58,801.13,0.69633331]
[1754811922686,0.21733768,802.58,801.14,0.69633331]
[1754811922982,0.21733768,802.58,801.15,0.69633331]
[1754811923185,0.21733768,802.58,801.16,0.69633331]
[1754811923383,0.21733768,802.58,801.21,1.0875424]
[1754811923585,0.21733768,802.58,801.22,0.69633331]
[1754811923784,0.21733768,802.58,801.23,0.69633331]
[1754811923984,0.21733768,802.58,801.24,0.69633331]
[1754811924183,0.21733768,802.58,801.25,0.69633331]
[1754811924387,0.21733768,802.58,801.26,0.69633331]
[1754811924686,0.21733768,802.58,801.27,0.69633331]
[1754811924885,0.21733768,802.58,801.28,0.69633331]
[1754811925083,0.21733768,802.58,801.29,0.69633331]
[1754811925284,0.21733768,802.58,801.3,0.69633331]
[1754811925484,0.21733768,802.58,801.31,0.69633331]
[1754811925687,0.21733768,802.58,801.18,1.0875424]
[1754811925883,0.21733768,802.58,801.19,0.69675095]
[1754811926189,0.21733768,802.58,801.22,1.0875424]
[1754811926490,0.21733768,802.58,801.23,0.69675095]
[1754811926689,0.21733768,802.58,801.24,1.78429335]
[1754811926885,0.21733768,802.58,801.25,0.69675095]
[1754811927090,0.21733768,802.58,801.26,0.69675095]
[1754811927290,0.21733768,802.58,801.27,0.69675095]
[1754811927491,0.21733768,802.58,801.28,0.69675095]
[1754811927693,0.21733768,802.58,801.3,1.0875424]
[1754811927888,0.21733768,802.58,801.42,1.0875424]
[1754811928092,0.21733768,802.58,801.43,0.69675095]
[1754811928392,0.21733768,802.58,801.42,1.0875424]
[1754811928589,0.21733768,802.58,801.43,0.69671392]
[1754811928892,0.21733768,802.58,801.44,0.69671392]
[1754811929090,0.21733768,802.58,801.45,0.69671392]
[1754811929293,0.21733768,802.58,801.46,0.69671392]
[1754811929492,0.21733768,802.58,799.81,5.52274103]
[1754811929493,0.21733768,802.58,801.47,0.69671392]
[1754811929693,0.21733768,802.58,801.48,0.69671392]
[1754811929889,0.21733768,802.58,801.49,0.69671392]
[1754811930094,0.21733768,802.58,801.5,0.69671392]
[1754811930390,0.21733768,802.58,801.51,0.69671392]
[1754811930593,0.21733768,802.58,801.52,0.69671392]
[1754811930793,0.21733768,802.58,801.53,0.69671392]
[1754811930993,0.21733768,802.58,801.27,1.0875424]
[1754811931194,0.21733768,802.58,801.36,1.0875424]
[1754811931395,0.21733768,802.58,801.37,0.69654915]
[1754811931596,0.21733768,802.58,801.38,0.69654915]
[1754811931894,0.21733768,802.58,801.3,1.0875424]
[1754811932189,0.21733768,802.58,801.12,1.65682231]
[1754811932190,0.21733768,802.58,801.31,1.78424233]
[1754811932394,0.21733768,802.58,801.32,0.69669993]
[1754811932693,0.21733768,802.58,801.33,0.69669993]
[1754811932889,0.21733768,802.58,801.34,0.69669993]
[1754811933094,0.21733768,802.58,801.31,1.0875424]
[1754811933390,0.21733768,802.58,801.32,0.69672452]
[1754811933589,0.21733768,802.58,801.33,0.69672452]
[1754811933791,0.21733768,802.58,801.34,0.69672452]
[1754811933996,0.21733768,802.58,801.32,1.0875424]
[1754811934194,0.21733768,802.58,801.33,0.69678878]
[1754811934393,0.21733768,802.58,801.34,0.69678878]
[1754811934590,0.21733768,802.58,801.3,1.0875424]
[1754811934791,0.21733768,802.58,801.31,0.6968512]
[1754811934996,0.21733768,802.58,801.32,0.6968512]
[1754811935192,0.21733768,802.58,801.3,1.0875424]
[1754811935395,0.21733768,802.58,801.31,0.69680695]
[1754811935694,0.21733768,802.58,801.32,0.69680695]
[1754811935892,0.21733768,802.58,801.33,0.69680695]
[1754811936093,0.21733768,802.58,801.34,0.69680695]
[1754811936293,0.21733768,802.58,801.19,1.0875424]
[1754811936595,0.21733768,802.58,801.2,0.69683595]
[1754811936892,0.21733768,802.58,801.21,0.69683595]
[1754811937096,0.21733768,802.58,801.22,0.69683595]
[1754811937297,0.21733768,802.58,801.23,0.69683595]
[1754811937496,0.21733768,802.58,801.24,0.69683595]
[1754811937694,0.21733768,802.58,801.25,0.69683595]
[1754811937898,0.21733768,802.58,801.26,0.69683595]
[1754811938095,0.21733768,802.58,801.27,0.69683595]
[1754811938295,0.21733768,802.58,801.28,0.69683595]
[1754811938497,0.21733768,802.58,801.29,0.69683595]
[1754811938695,0.21733768,802.58,801.3,0.69683595]
[1754811938994,0.21733768,802.58,801.31,0.69683595]
[1754811939195,0.21733768,802.58,801.32,0.69683595]
[1754811939498,0.21733768,802.58,801.16,1.0875424]
[1754811939698,0.21733768,802.58,801.17,0.6968895]
[1754811939897,0.21733768,802.58,801.18,0.6968895]
[1754811940094,0.21733768,802.58,801.19,0.6968895]
[1754811940394,0.21733768,802.58,801.0,1.0875424]
[1754811940697,0.21733768,802.58,801.02,1.0875424]
[1754811940895,0.21733768,802.58,801.03,1.78457197]
[1754811941094,0.21733768,802.58,801.04,0.69702957]
[1754811941298,0.21733768,802.58,801.05,0.69702957]
[1754811941496,0.21733768,802.58,801.06,0.69702957]
[1754811941800,0.21733768,802.58,801.07,0.69702957]
[1754811942100,0.21733768,802.58,801.08,0.69702957]
[1754811942301,0.21733768,802.58,801.09,0.69702957]
[1754811942597,0.21733768,802.58,800.95,1.0875424]
[1754811942801,0.21733768,802.58,801.19,1.0875424]
[1754811942998,0.21733768,802.58,801.34,1.0875424]
[1754811943200,0.21733768,802.58,801.39,1.0875424]
[1754811943397,0.21733768,802.58,801.51,1.0875424]
[1754811943600,0.21733768,802.58,801.4,0.69699744]
[1754811943601,0.21733768,802.58,801.57,1.0875424]
[1754811943798,0.21733768,802.58,801.58,0.69699744]
[1754811944100,0.21733768,802.58,801.59,0.69699744]
[1754811944301,0.21733768,802.58,801.6,0.69699744]
[1754811944495,0.21733768,802.58,801.61,0.69699744]
[1754811944697,0.21733768,802.58,801.62,0.69699744]
[1754811944902,0.21733768,802.58,801.21,1.0875424]
[1754811945196,0.21733768,802.58,801.5,1.0875424]
[1754811945401,0.21733768,802.58,801.52,1.0875424]
[1754811945608,0.21733768,802.58,801.53,0.69646494]
[1754811945803,0.21733768,802.58,801.45,1.0875424]
[1754811946102,0.21733768,802.58,801.28,1.0875424]
[1754811946402,0.21733768,802.58,801.29,0.69653291]
[1754811946602,0.21733768,802.58,801.24,1.0875424]
[1754811946802,0.21733768,802.58,801.27,1.0875424]
[1754811947001,0.21733768,802.58,801.34,1.0875424]
[1754811947201,0.21733768,802.58,801.37,1.0875424]
[1754811947399,0.21733768,802.58,801.62,1.0875424]
[1754811947599,0.21733768,802.58,801.63,1.78390223]
[1754811947802,0.21733768,802.58,801.69,1.0875424]
[1754811948100,0.21733768,802.58,801.7,1.78383828]
[1754811948300,0.21733768,802.58,801.7,1.0875424]
[1754811949104,0.21733768,802.58,801.57,1.0875424]
[1754811949399,0.21733768,802.58,801.46,1.0875424]
[1754811949601,0.21733768,802.58,801.26,1.65682231]
[1754811949602,0.21733768,802.58,801.47,0.69634066]
[1754811949800,0.21733768,802.58,801.48,0.69634066]
[1754811950000,0.21733768,802.58,801.49,0.69634066]
[1754811950200,0.21733768,802.58,801.5,0.69634066]
[1754811950405,0.21733768,802.58,801.32,1.0875424]
[1754811950604,0.21733768,802.58,801.33,0.69635494]
[1754811950800,0.21733768,802.58,801.34,1.78389734]
[1754811951105,0.21733768,802.58,801.35,0.69635494]
[1754811951300,0.21733768,802.58,801.44,1.0875424]
[1754811951503,0.21733768,802.58,801.45,0.69635494]
[1754811951705,0.21733768,802.58,801.46,1.78389734]
[1754811952006,0.21733768,802.58,801.49,1.0875424]
[1754811952204,0.21733768,802.58,801.5,0.69635494]
[1754811952408,0.21733768,802.58,801.69,1.0875424]
[1754811952805,0.21733768,802.58,801.68,1.0875424]
[1754811953005,0.21733768,802.58,801.69,0.69856393]
[1754811953205,0.21733768,802.58,801.67,1.0875424]
[1754811953505,0.21733768,802.58,801.68,0.69844572]
[1754811953809,0.21733768,802.58,801.64,1.0875424]
[1754811954109,0.21733768,802.58,801.65,0.69845336]
[1754811954409,0.21733768,802.58,801.66,0.69845336]
[1754811954607,0.21733768,802.58,801.67,0.69845336]
[1754811954908,0.21733768,802.58,801.68,0.69845336]
[1754811955106,0.21733768,802.58,801.69,0.69845336]
[1754811955407,0.21733768,802.58,801.62,1.0875424]
[1754811955612,0.21733768,802.58,801.63,0.69826281]
[1754811955913,0.21733768,802.58,801.64,0.69826281]
[1754811956112,0.21733768,802.58,801.65,0.69826281]
[1754811956412,0.21733768,802.58,801.66,0.69826281]
[1754811956608,0.21733768,802.58,800.32,3.86591872]
[1754811956609,0.21733768,802.58,801.53,1.0875424]
[1754811956912,0.21733768,802.58,801.54,0.69817492]
[1754811957207,0.21733768,802.58,801.55,0.69817492]
[1754811957414,0.21733768,802.58,801.56,0.69817492]
[1754811957614,0.21733768,802.58,801.57,0.69817492]
[1754811957813,0.21733768,802.58,801.58,0.69817492]
[1754811958011,0.21733768,802.58,801.59,0.69817492]
[1754811958213,0.21733768,802.58,801.6,0.69817492]
[1754811958409,0.21733768,802.58,801.61,0.69817492]
[1754811958712,0.21733768,802.58,801.62,0.69817492]
[1754811958914,0.21733768,802.58,801.44,1.0875424]
[1754811959113,0.21733768,802.58,801.45,0.69809056]
[1754811959310,0.21733768,802.58,801.46,0.69809056]
[1754811959515,0.21733768,802.58,801.47,0.69809056]
[1754811959717,0.21733768,802.58,801.48,0.69809056]
[1754811959915,0.21733768,802.58,801.49,0.69809056]
[1754811960111,0.21733768,802.58,801.44,1.0875424]
[1754811960315,0.21733768,802.58,801.45,0.6980639]
[1754811960511,0.21733768,802.58,801.46,0.6980639]
[1754811960715,0.21733768,802.58,801.47,0.6980639]
[1754811960913,0.21733768,802.58,801.48,0.6980639]
[1754811961111,0.21733768,802.58,801.49,0.6980639]
[1754811961311,0.21733768,802.58,801.43,1.0875424]
[1754811961516,0.21733768,802.58,801.44,1.78562946]
[1754811961716,0.21733768,802.58,801.49,1.0875424]
[1754811962013,0.21733768,802.58,801.5,1.78569922]
[1754811962216,0.21733768,802.58,801.51,1.78569922]
[1754811962517,0.21733768,802.58,801.52,0.69820982]
[1754811962816,0.21733768,802.58,801.6,1.0875424]
[1754811963015,0.21733768,802.58,801.61,0.69820982]
[1754811963310,0.21733768,802.58,801.63,1.0875424]
[1754811963513,0.21733768,802.58,801.64,1.78575222]
[1754811963713,0.21733768,802.58,801.66,1.0875424]
[1754811965519,0.21733768,802.58,801.68,1.0875424]
[1754811966019,0.21733768,802.58,801.69,0.69829385]
[1754811966213,0.21733768,802.58,801.65,1.0875424]
[1754811966417,0.21733768,802.58,801.66,0.6982411]
[1754811966618,0.21733768,802.58,801.83,1.0875424]
[1754811966919,0.21733768,802.58,801.84,1.7857835]
[1754811967120,0.21733768,802.58,801.78,1.0875424]
[1754811967315,0.21733768,802.58,801.69,1.0875424]
[1754811967516,0.21733768,802.58,801.71,1.0875424]
[1754811967721,0.21733768,802.58,801.72,0.69844401]
[1754811967916,0.21733768,802.58,801.73,0.69844401]
[1754811968116,0.21733768,802.58,801.74,0.69844401]
[1754811968317,0.21733768,802.58,801.75,0.69844401]
[1754811968518,0.21733768,802.58,801.82,1.0875424]
[1754811968717,0.21733768,802.58,801.83,0.69844401]
[1754811968921,0.21733768,802.58,801.84,0.69844401]
[1754811969120,0.21733768,802.58,801.83,1.0875424]
[1754811969317,0.21733768,802.58,801.84,0.69828104]
[1754811969521,0.21733768,802.58,801.85,0.6981614]
[1754811969820,0.21733768,802.58,801.56,1.0875424]
[1754811970117,0.21733768,802.58,801.57,0.69822301]
[1754811970318,0.21733768,802.58,801.58,0.69822301]
[1754811970517,0.21733768,802.58,801.59,0.69822301]
[1754811970818,0.21733768,802.58,801.61,1.0875424]
[1754811971015,0.21733768,802.58,801.62,0.69822301]
[1754811971220,0.21733768,802.58,801.63,0.69822301]
[1754811971520,0.21733768,802.58,801.64,0.69822301]
[1754811971720,0.21733768,802.58,801.65,0.69822301]
[1754811972019,0.21733768,802.58,801.66,0.69822301]
[1754811972216,0.21733768,802.58,801.67,0.69822301]
[1754811972417,0.21733768,802.58,801.68,0.69822301]
[1754811972617,0.21733768,802.58,801.69,0.69822301]
[1754811972816,0.21733768,802.58,801.71,1.0875424]
[1754811973018,0.21733768,802.58,801.78,1.0875424]
[1754811973217,0.21733768,802.58,801.79,0.69822301]
[1754811973422,0.21733768,802.58,800.18,3.86591872]
[1754811973423,0.21733768,802.58,801.8,1.78576541]
[1754811973623,0.21733768,802.58,801.86,1.0875424]
[1754811973923,0.21733768,802.58,801.87,0.69822301]
[1754811974120,0.21733768,802.58,801.92,1.0875424]
[1754811974323,0.21733768,802.58,801.93,0.69822301]
[1754811974523,0.21733768,802.58,801.94,0.69822301]
[1754811974725,0.21733768,802.58,801.99,1.0875424]
[1754811974921,0.21733768,802.58,802.0,0.69822301]
[1754811975119,0.21733768,802.58,802.27,1.0875424]
[1754811975424,0.21733768,802.58,802.34,1.0875424]
[1754811975824,0.21733768,802.58,802.35,0.69679532]
[1754811976021,0.21733768,802.58,802.3,1.0875424]
[1754811976223,0.21733768,802.58,802.31,0.69679525]
[1754811976524,0.21733768,802.58,802.32,0.69679525]
[1754811976723,0.21733768,802.58,802.23,1.0875424]
[1754811977023,0.21733768,802.58,802.24,0.69641789]
[1754811977221,0.21733768,802.58,802.25,0.69641789]
[1754811977421,0.21733768,802.58,802.26,0.69641789]
[1754811977619,0.21733768,802.58,802.27,0.69641789]
[1754811977819,0.21733768,802.58,802.28,0.69641789]
[1754811978021,0.21733768,802.58,802.29,0.69641789]
[1754811978224,0.21733768,802.58,802.3,0.69641789]
[1754811978421,0.21733768,802.58,802.37,1.0875424]
[1754811978725,0.21733768,802.58,802.39,1.0875424]
[1754811979022,0.21733768,802.58,802.4,1.78396029]
[1754811979225,0.21733768,802.58,802.41,1.78396029]
[1754811979526,0.21733768,802.58,802.42,0.69641789]
[1754811979821,0.21733768,802.58,802.43,0.69641789]
[1754811980021,0.21733768,802.58,802.44,0.69641789]
[1754811980220,0.21733768,802.58,802.24,1.0875424]
[1754811980423,0.21733768,802.58,802.25,0.69459972]
[1754811980724,0.21733768,802.58,802.37,1.0875424]
[1754811981226,1.65611947,804.66,802.38,0.69447571]
[1754811981426,1.65611947,805.02,802.7,1.10885978]
[1754811981724,1.65611947,805.1,802.78,1.10885978]
[1754811981926,1.65611947,805.12,802.79,0.69447571]
[1754811982226,1.65611947,805.18,802.8,0.69447571]
[1754811982426,1.65611947,805.21,802.81,0.69447571]
[1754811982636,1.65611947,805.22,802.82,0.69447571]
[1754811982826,1.65611947,805.22,802.83,0.69447571]
[1754811983025,1.65611947,805.22,802.84,0.69447571]
[1754811983233,1.65611947,805.26,802.85,0.69447571]
[1754811983429,1.65611947,805.26,802.86,0.69447571]
[1754811983625,1.65611947,805.26,802.87,0.69447571]
[1754811983828,1.65611947,805.22,802.88,0.69447571]
[1754811984124,1.65611947,805.22,802.89,0.69447571]
[1754811984329,0.21681365,804.64,802.9,0.68980561]
[1754811984527,0.21681365,804.64,802.91,0.68980561]
[1754811984725,0.21681365,804.64,802.92,0.68980561]
[1754811985029,0.21681365,804.64,802.93,0.68980561]
[1754811985326,0.21681365,804.64,802.94,0.68980561]
[1754811985628,0.21681365,804.64,802.95,0.68980561]
[1754811985826,0.21681365,804.64,802.96,0.68980561]
[1754811986027,0.21681365,804.64,802.97,0.68980561]
[1754811986227,0.21681365,804.64,802.98,0.68980561]
[1754811986428,0.21681365,804.64,802.99,0.68980561]
[1754811986626,0.21681365,804.64,803.0,0.68980561]
[1754811986924,0.21681365,804.64,803.01,1.79866539]
[1754811987226,0.21681365,804.64,803.02,0.68980561]
[1754811987530,0.21681365,804.64,803.03,0.68980561]
[1754811987730,0.21681365,804.64,803.04,0.68980561]
[1754811987926,0.21681365,804.64,803.05,0.68980561]
[1754811988124,0.21681365,804.64,803.06,0.68980561]
[1754811988327,0.21681365,804.64,801.65,8.28411154]
[1754811988328,0.21681365,804.64,803.07,0.68980561]
[1754811988530,0.21681365,804.64,803.08,0.68980561]
[1754811988727,0.21681365,804.64,803.09,0.68980561]
[1754811988931,0.21681365,804.64,803.1,0.68980561]
[1754811989128,0.21681365,804.64,803.11,0.68980561]
[1754811989432,0.21681365,804.64,803.12,0.68980561]
[1754811989627,0.21681365,804.64,803.13,0.68980561]
[1754811989832,0.21681365,804.64,803.14,0.68980561]
[1754811990029,0.21681365,804.64,803.15,0.68980561]
[1754811990231,0.21681365,804.64,803.16,0.68980561]
[1754811990530,0.21681365,804.64,803.17,0.68980561]
[1754811990735,0.21681365,804.64,803.18,0.68980561]
[1754811990937,0.21681365,804.64,803.19,0.68980561]
[1754811991138,0.21681365,804.64,803.2,0.68980561]
[1754811991339,0.21681365,804.64,803.21,0.68980561]
[1754811991539,0.21681365,804.64,803.22,0.68980561]
[1754811991739,0.21681365,804.64,803.23,0.68980561]
[1754811991939,0.21681365,804.64,803.24,0.68980561]
[1754811992138,0.21681365,804.64,803.25,0.68980561]
[1754811992336,0.21681365,804.64,803.26,0.68980561]
[1754811992537,0.21681365,804.64,803.27,0.68980561]
[1754811992739,0.21681365,804.64,803.28,0.68980561]
[1754811993035,0.21681365,804.64,803.29,0.68980561]
[1754811993242,0.21681365,804.64,803.3,0.68980561]
[1754811993440,0.21681365,804.64,803.31,0.68980561]
[1754811993639,0.21681365,804.64,802.56,1.10885978]
[1754811993943,0.21681365,804.64,802.57,0.6831908]
[1754811994242,0.21681365,804.64,802.62,1.10885978]
[1754811994441,0.21681365,804.64,802.63,0.6831908]
[1754811994741,0.21681365,804.64,802.64,0.6831908]
[1754811994936,0.21681365,804.64,802.65,0.6831908]
[1754811995140,0.21681365,804.64,802.66,0.6831908]
[1754811995342,0.21681365,804.64,802.67,0.6831908]
[1754811995538,0.21681365,804.64,802.68,0.6831908]
[1754811995738,0.21681365,804.64,802.69,0.6831908]
[1754811996038,0.21681365,804.64,802.7,0.6831908]
[1754811996239,0.21681365,804.64,802.71,0.6831908]
[1754811996441,0.21681365,804.64,802.72,0.6831908]
[1754811996741,0.21681365,804.64,802.73,0.6831908]
[1754811996941,0.21681365,804.64,802.74,0.6831908]
[1754811997238,0.21681365,804.64,802.75,0.6831908]
[1754811997441,0.21681365,804.64,802.76,0.6831908]
[1754811997640,0.21681365,804.64,802.77,0.6831908]
[1754811997836,0.21681365,804.64,802.78,0.6831908]
[1754811998038,0.21681365,804.64,802.79,0.6831908]
[1754811998238,0.21681365,804.64,802.8,0.6831908]
[1754811998442,0.21681365,804.64,802.81,0.6831908]
[1754811998637,0.21681365,804.64,801.13,3.86591872]
[1754811998638,0.21681365,804.64,802.82,0.6831908]
[1754811998842,0.21681365,804.64,802.83,0.6831908]
[1754811999039,0.21681365,804.64,801.56,2.76137051]
[1754811999040,0.21681365,804.64,802.84,0.6831908]
[1754811999243,0.21681365,804.64,802.85,0.6831908]
[1754811999543,0.21681365,804.64,802.45,1.10885978]
[1754811999544,0.21681365,804.64,802.86,0.6831908]
[1754811999743,0.21681365,804.64,802.87,0.6831908]
[1754811999944,0.21681365,804.64,802.88,0.6831908]
[1754812000141,0.21681365,804.64,802.89,0.6831908]
[1754812000444,0.21681365,804.64,802.9,0.6831908]
[1754812000645,0.21681365,804.64,802.25,1.10885978]
[1754812000646,0.21681365,804.64,802.07,1.10885978]
[1754812000846,0.21681365,804.64,802.08,1.79191027]
[1754812001045,0.21681365,804.64,802.09,0.68305049]
[1754812001242,0.21681365,804.64,802.1,0.68305049]
[1754812001447,0.21681365,804.64,802.11,0.68305049]
[1754812001742,0.21681365,804.64,802.12,0.68305049]
[1754812002045,0.21681365,804.64,802.13,0.68305049]
[1754812002343,0.21681365,804.64,802.14,0.68305049]
[1754812002546,0.21681365,804.64,801.14,2.76137051]
[1754812002547,0.21681365,804.64,802.15,0.68305049]
[1754812002845,0.21681365,804.64,802.16,0.68305049]
[1754812003045,0.21681365,804.64,802.17,0.68305049]
[1754812003243,0.21681365,804.64,802.18,1.79191027]
[1754812003445,0.21681365,804.64,802.19,1.79191027]
[1754812003646,0.21681365,804.64,802.2,0.68305049]
[1754812003946,0.21681365,804.64,802.21,0.68305049]
[1754812004146,0.21681365,804.64,802.22,0.68305049]
[1754812004446,0.21681365,804.64,802.23,0.68305049]
[1754812004646,0.21681365,804.64,802.24,0.68305049]
[1754812004843,0.21681365,804.64,802.25,0.68305049]
[1754812005048,0.21681365,804.64,802.26,0.68305049]
[1754812005343,0.21681365,804.64,802.27,0.68305049]
[1754812005544,0.21681365,804.64,802.28,0.68305049]
[1754812005746,0.21681365,804.64,802.29,0.68305049]
[1754812005947,0.21681365,804.64,802.3,0.68305049]
[1754812006242,0.21681365,804.64,802.32,1.10885978]
[1754812006445,0.21681365,804.64,802.36,1.10885978]
[1754812006644,0.21681365,804.64,802.38,1.10885978]
[1754812006842,0.21681365,804.64,802.39,0.68305049]
[1754812007042,0.21681365,804.64,802.51,1.10885978]
[1754812007243,0.21681365,804.64,802.52,0.68305049]
[1754812007444,0.21681365,804.64,802.53,0.68305049]
[1754812007649,0.21681365,804.64,802.54,0.68305049]
[1754812007849,0.21681365,804.64,802.55,0.68305049]
[1754812008046,0.21681365,804.64,802.56,0.68305049]
[1754812008345,0.21681365,804.64,802.57,0.68305049]
[1754812008548,0.21681365,804.64,802.58,0.68305049]
[1754812008846,0.21681365,804.64,802.59,0.68305049]
[1754812009144,0.21681365,804.64,802.6,0.68305049]
[1754812009348,0.21681365,804.64,802.61,0.68305049]
[1754812009545,0.21681365,804.64,802.74,1.10885978]
[1754812009845,0.21681365,804.64,802.82,1.10885978]
[1754812010046,0.21681365,804.64,802.83,0.68305049]
[1754812010349,0.21681365,804.64,802.84,0.68305049]
[1754812010550,0.21681365,804.64,802.85,0.68305049]
[1754812010846,0.21681365,804.64,802.86,0.68305049]
[1754812011053,0.21681365,804.64,802.87,0.68305049]
[1754812011254,0.21681365,804.64,802.88,0.68305049]
[1754812011453,0.21681365,804.64,802.81,1.10885978]
[1754812011454,0.21681365,804.64,802.89,0.68305049]
[1754812011655,0.21681365,804.64,802.53,1.10885978]
[1754812011656,0.21681365,804.64,802.9,0.68305049]
[1754812011854,0.21681365,804.64,802.91,0.68305049]
[1754812012055,0.21681365,804.64,802.92,0.68305049]
[1754812012355,0.21681365,804.64,802.93,0.68305049]
[1754812012657,0.21681365,804.64,802.94,0.68305049]
[1754812012855,0.21681365,804.64,802.54,1.10885978]
[1754812012856,0.21681365,804.64,802.95,0.68305049]
[1754812013055,0.21681365,804.64,802.96,0.68305049]
[1754812013354,0.21681365,804.64,802.97,0.68305049]
[1754812013549,0.21681365,804.64,802.98,0.68305049]
[1754812013753,0.21681365,804.64,802.99,0.68305049]
[1754812013951,0.21681365,804.64,803.0,0.68305049]
[1754812014155,0.21681365,804.64,803.01,0.68305049]
[1754812014455,0.21681365,804.64,803.02,0.68305049]
[1754812014654,0.21681365,804.64,803.03,0.68305049]
[1754812014952,0.21681365,804.64,803.04,0.68305049]
[1754812015154,0.21681365,804.64,803.05,0.68305049]
[1754812015352,0.21681365,804.64,803.06,0.68305049]
[1754812015550,0.21681365,804.64,803.07,0.68305049]
[1754812015749,0.21681365,804.64,803.08,0.68305049]
[1754812015949,0.21681365,804.64,803.09,0.68305049]
[1754812016153,0.21681365,804.64,802.51,1.10885978]
[1754812016154,0.21681365,804.64,803.1,0.68305049]
[1754812016354,0.21681365,804.64,803.11,0.68305049]
[1754812016552,0.21681365,804.64,803.12,0.68305049]
[1754812016751,0.21681365,804.64,803.13,0.68305049]
[1754812016955,0.21681365,804.64,803.14,0.68305049]
[1754812017157,0.21681365,804.64,803.15,0.68305049]
[1754812017354,0.21681365,804.64,803.16,0.68305049]
[1754812017554,0.21681365,804.64,803.17,0.68305049]
[1754812017753,0.21681365,804.64,803.18,0.68305049]
[1754812017955,0.21681365,804.64,803.19,0.68305049]
[1754812018157,0.21681365,804.64,803.2,0.68305049]
[1754812018355,0.21681365,804.64,803.21,0.68305049]
[1754812018558,0.21681365,804.64,803.22,0.68305049]
[1754812018756,0.21681365,804.64,803.23,0.68305049]
[1754812018957,0.21681365,804.64,803.24,0.68305049]
[1754812019156,0.21681365,804.64,803.25,0.68305049]
[1754812019455,0.21681365,804.64,802.66,1.10885978]
[1754812019456,0.21681365,804.64,803.26,0.68305049]
[1754812019661,0.21681365,804.64,803.27,0.68305049]
[1754812019858,0.21681365,804.64,803.28,0.68305049]
[1754812020161,0.21681365,804.64,803.29,0.68305049]
[1754812020461,0.21681365,804.64,803.3,0.68305049]
[1754812020659,0.21681365,804.64,803.31,0.68305049]
[1754812020856,0.21681365,804.64,803.32,0.68305049]
[1754812021057,0.21681365,804.64,803.33,0.68305049]
[1754812021261,0.21681365,804.64,803.34,0.68305049]
[1754812021458,0.21681365,804.64,803.35,0.68305049]
[1754812021662,0.21681365,804.64,803.05,1.10885978]
[1754812021958,0.21681365,804.64,803.06,0.6861712]
[1754812022159,0.21681365,804.64,803.07,0.6861712]
[1754812022362,0.21681365,804.64,803.08,0.6861712]
[1754812022562,0.21681365,804.64,803.09,0.6861712]
[1754812022762,0.21681365,804.64,803.1,0.6861712]
[1754812022960,0.21681365,804.64,803.11,0.6861712]
[1754812023262,0.21681365,804.64,803.12,0.6861712]
[1754812023462,0.21681365,804.64,803.13,0.6861712]
[1754812023662,0.21681365,804.64,803.14,0.6861712]
[1754812023860,0.21681365,804.64,803.15,0.6861712]
[1754812024060,0.21681365,804.64,803.16,0.6861712]
[1754812024260,0.21681365,804.64,803.17,0.6861712]
[1754812024564,0.21681365,804.64,803.18,0.6861712]
[1754812024763,0.21681365,804.64,803.19,0.6861712]
[1754812025059,0.21681365,804.64,803.2,0.6861712]
[1754812025260,0.21681365,804.64,803.21,0.6861712]
[1754812025463,0.21681365,804.64,803.22,0.6861712]
[1754812025759,0.21681365,804.64,803.23,0.6861712]
[1754812025962,0.21681365,804.64,803.24,0.6861712]
[1754812026164,0.21681365,804.64,803.25,0.6861712]